[Event "AUT Bundesliga 2024-25"]
[Site "Austria"]
[Date "2025.04.02"]
[Round "6.1"]
[White "Parligras, Mircea-Emilian"]
[Black "Pechac, Jergus"]
[Result "1/2-1/2"]
[Annotator "TA"]
[ECO "D41"]
[WhiteElo "2507"]
[BlackElo "2600"]
[PlyCount "63"]
[EventDate "2024.08.28"]
[EventType "team-tourn"]
[EventCountry "AUT"]
[SourceTitle "playchess.com"]
[Source "ChessBase"]
[SourceQuality "1"]
[TimeControl "40/5400+30:1800+30"]

{[%evp 11,62,23,36,40,34,1,34,29,32,43,46,43,43,31,29,29,28,31,31,32,32,32,19,22,30,15,22,10,25,10,11,4,13,11,5,0,14,0,0,0,0,0,0,0,0,0,0,0,0,0,0,0,0]} 1. d4 {[%emt 0:00:04]} Nf6 {[%emt 0:00:06]} 2. c4 {[%emt 0:00:09]} e6 {[%emt 0:00:05]} 3. Nf3 {[%emt 0:00:14]} d5 {[%emt 0:00:05]} 4. Nc3 {[%emt 0:00:13]} c5 {[%emt 0:00:06]} 5. cxd5 {[%emt 0:00:30]} cxd4 {[%emt 0:00:06]} 6. Qxd4 {[%emt 0:00:21]} exd5 {[%emt 0:00:05]} 7. e4 {[%emt 0:00:39] D41: Queen's Gambit Declined: Semi-Tarrasch with 5 cxd5.} dxe4 {[%emt 0:00:07]} 8. Qxd8+ {[%emt 0:00:08]} Kxd8 {[%emt 0:00:05]} 9. Ng5 {[%emt 0:00:10][%csl LRe4,LRf7] White is slightly better.} Be6 {[%emt 0:00:04]} 10. Nxe6+ {[%emt 0:01:09]} fxe6 {[%emt 0:00:07]} 11. Bg5 {[%emt 0:00:27]} Nc6 {[%emt 0:00:13]} 12. O-O-O+ {[%emt 0:01:20] White sacrificed a pawn} Ke8 {[%emt 0:00:27]} 13. Bb5 {[%emt 0:01:39]} Rc8 {[%emt 0:00:19]} 14. Rhe1 {[%emt 0:01:33][%cal Ob5a4,Bh1e1,Be1e4,Be4h4][%mdl 32]} Bb4 {[%emt 0:03:44]} 15. Bxf6 {[%emt 0:00:44]} gxf6 {[%emt 0:00:05]} 16. Rxe4 {[%emt 0:00:07]} Bxc3 {[%emt 0:00:28]} 17. bxc3 {[%emt 0:00:11]} Ke7 {[%emt 0:01:00]} 18. Rde1 {[%emt 0:01:00]} Nd8 $146 {[%emt 0:10:46]} (18... e5 19. Kb2 Nd8 20. Bd3 Ne6 21. Rh4 Rcd8 22. Kc2 Nc5 23. Bf5 Kf7 24. Rd1 Rxd1 25. Kxd1 {1-0 Werner,J (2392)-Mager,F (2233) GER DSF C10 f email rapid 2019}) 19. Bc4 {[%emt 0:06:46][%cal Rc4e6]} Rc6 {[%emt 0:06:06]} 20. R1e3 {[%emt 0:02:56]} f5 {[%emt 0:02:12] The position is equal.} 21. Rh4 {[%emt 0:00:46]} Kf6 {[%emt 0:03:17]} 22. Bb3 {[%emt 0:05:26]} Nf7 {[%emt 0:00:55]} 23. Rd4 {[%emt 0:06:31]} Rd8 {[%emt 0:13:54] Prevents Rd7} 24. Rxd8 {[%emt 0:01:59]} Nxd8 $11 {[%emt 0:00:50][%mdl 4096] Endgame KRB-KRN} 25. Rd3 {[%emt 0:03:25]} Ke7 {[%emt 0:04:54]} 26. Rh3 {[%emt 0:06:35]} Nf7 {[%emt 0:00:06]} 27. Rxh7 {[%emt 0:00:42]} Rxc3+ {[%emt 0:00:08]} 28. Kd2 {[%emt 0:00:30]} Rc8 {[%emt 0:04:27]} 29. Rh4 {[%emt 0:02:11]} b5 {[%emt 0:03:57]} 30. a4 {[%emt 0:02:35]} a6 {[%emt 0:00:46]} 31. axb5 {[%emt 0:00:24]} axb5 {[%emt 0:00:08]} 32. Rb4 {[%emt 0:07:06] Weighted Error Value: White=0.03 (flawless) /Black=0.02 (flawless)   Inaccurate:     	---       	Black=1      OK:         	White=10    	Black=12     Best:        	White=1     	Black=2} 1/2-1/2

[Event "AUT Bundesliga 2024-25"]
[Site "Austria"]
[Date "2025.04.02"]
[Round "6.2"]
[White "Zilka, Stepan"]
[Black "Kozul, Zdenko"]
[Result "1/2-1/2"]
[Annotator "TA"]
[ECO "E71"]
[WhiteElo "2515"]
[BlackElo "2507"]
[PlyCount "85"]
[EventDate "2024.08.28"]
[EventType "team-tourn"]
[EventCountry "AUT"]
[SourceTitle "playchess.com"]
[Source "ChessBase"]
[SourceQuality "1"]
[TimeControl "40/5400+30:1800+30"]

{[%evp 9,85,36,41,21,18,26,68,59,64,64,64,38,43,32,26,18,9,0,0,0,22,0,0,0,8,4,0,14,3,-14,-3,0,0,-21,-18,-37,-30,-38,-47,-40,-43,-30,-37,-37,-32,-45,-39,-61,-46,-45,-36,-44,-48,-54,0,0,0,0,0,0,0,0,0,0,0,0,0,0,0,0,0,0,0,0,0,0,7,0]} 1. d4 {[%emt 0:00:04]} Nf6 {[%emt 0:00:10]} 2. c4 {[%emt 0:00:05]} g6 {[%emt 0:00:20]} 3. Nc3 {[%emt 0:00:06]} Bg7 {[%emt 0:00:05]} 4. e4 {[%emt 0:00:08]} d6 {[%emt 0:00:07]} 5. h3 {[%emt 0:00:14]} Nbd7 {[%emt 0:06:07]} 6. Be3 {[%emt 0:00:59] E71: King's Indian: 4 e4 d6 5 h3.} e5 {[%emt 0:01:37]} 7. d5 {[%emt 0:00:11]} h5 $1 {[%emt 0:05:24][%mdl 4] is currently scoring better than 7...Nc5.} 8. Nf3 {[%emt 0:13:49] White is slightly better. White is more active.} Bh6 {[%emt 0:00:29]} 9. Bxh6 {[%emt 0:05:59]} Rxh6 {[%emt 0:00:07]} 10. Qd2 {[%emt 0:00:22]} Rh8 {[%emt 0:00:14]} 11. Be2 {[%emt 0:03:53]} h4 $146 {[%emt 0:08:30]} (11... Kf8 12. O-O-O Kg7 13. Qe3 Qe7 14. Nd2 h4 15. g4 Nh7 16. Nf3 g5 17. Kb1 b6 {0-1 Kostov,D (2347)-Ivic,V (2622) Delft OGD Rapid op 24th 2025 (2)}) 12. O-O-O {[%emt 0:01:33]} a5 {[%emt 0:09:49]} 13. g3 {[%emt 0:10:15]} hxg3 {[%emt 0:07:04]} 14. fxg3 {[%emt 0:00:02]} Nh5 {[%emt 0:00:18]} 15. Rhg1 {[%emt 0:05:05]} Nc5 {[%emt 0:00:40]} 16. h4 {[%emt 0:00:48]} Qe7 {[%emt 0:02:09]} 17. Ne1 {[%emt 0:02:12]} Nf6 {[%emt 0:05:50][%cal Bh5f6,Bf6d7,Bd7c5][%mdl 32]} 18. Bf3 {[%emt 0:01:19]} b6 {[%emt 0:02:30]} 19. Nd3 {[%emt 0:02:04]} Nxd3+ {[%emt 0:11:53]} 20. Qxd3 {[%emt 0:00:02]} Nd7 {[%emt 0:00:07]} 21. Rdf1 {[%emt 0:10:22] Not much happening anymore} Nc5 $1 {[%emt 0:00:54]} 22. Qe3 {[%emt 0:00:21]} Bd7 {[%emt 0:02:36]} 23. Be2 {[%emt 0:08:15]} O-O-O {[%emt 0:02:57]} 24. Qg5 {[%emt 0:01:38]} Qxg5+ {[%emt 0:01:38]} 25. hxg5 {[%emt 0:00:01]} Rh7 {[%emt 0:00:08]} 26. Kd2 {[%emt 0:06:32]} Rdh8 {[%emt 0:00:53]} 27. Ke3 {[%emt 0:00:06]} Kd8 {[%emt 0:01:58]} 28. Rf2 {[%emt 0:08:35]} Be8 {[%emt 0:01:17]} 29. b3 {[%emt 0:02:54]} Rh1 {[%emt 0:00:54]} 30. Rxh1 {[%emt 0:02:43]} Rxh1 {[%emt 0:00:07]} 31. Rf1 {[%emt 0:00:01]} Rxf1 {[%emt 0:03:46]} (31... Rh2 $1 $15) 32. Bxf1 $15 {[%emt 0:00:02][%mdl 4096] Endgame KBN-KBN. The position is equal.} Nd7 {[%emt 0:00:07]} 33. Kf3 {[%emt 0:00:33]} Nf8 {[%emt 0:00:27]} 34. Kg4 $1 {[%emt 0:00:25]} Nh7 {[%emt 0:03:28]} 35. Kh4 {[%emt 0:01:59]} Bd7 {[%emt 0:00:11]} 36. Be2 {[%emt 0:01:25]} c6 {[%emt 0:06:06]} 37. Bg4 {[%emt 0:00:58]} Kc7 {[%emt 0:00:11]} 38. Bxd7 {[%emt 0:00:28]} Kxd7 {[%emt 0:00:05]} 39. Kg4 {[%emt 0:02:24]} Kc7 {[%emt 0:01:09]} 40. a3 {[%emt 0:02:00][%cal Ba2a3,Ba3b4,Bb4b5][%mdl 32]} Nf8 {[%emt 0:00:50]} 41. b4 {[%emt 0:31:01]} axb4 {[%emt 0:33:36]} 42. axb4 {[%emt 0:00:06]} c5 {[%emt 0:00:27]} 43. b5 {[%emt 0:01:17] Weighted Error Value: White=0.05 (flawless) /Black=0.05 (flawless)   Mistake:       	---       	Black=1      Inaccurate:     	White=1     	Black=1      OK:         	White=14    	Black=18     Strong:       	White=1     	Black=1} 1/2-1/2

[Event "AUT Bundesliga 2024-25"]
[Site "Austria"]
[Date "2025.04.02"]
[Round "6.3"]
[White "Mohr, Georg"]
[Black "Hracek, Zbynek"]
[Result "1/2-1/2"]
[Annotator "TA"]
[ECO "B43"]
[WhiteElo "2385"]
[BlackElo "2538"]
[PlyCount "60"]
[EventDate "2024.08.28"]
[EventType "team-tourn"]
[EventCountry "AUT"]
[SourceTitle "playchess.com"]
[Source "ChessBase"]
[SourceQuality "1"]
[TimeControl "40/5400+30:1800+30"]

{[%evp 15,60,24,30,39,40,16,16,9,17,9,8,0,0,0,18,0,9,-2,0,0,-5,-19,-9,-14,0,-3,0,0,7,-16,-8,-19,0,0,-3,-10,0,0,0,-4,0,0,0,-5,0,-14,0]} 1. e4 {[%emt 0:00:07]} c5 {[%emt 0:00:39]} 2. Nf3 {[%emt 0:00:21]} e6 {[%emt 0:01:12]} 3. d4 {[%emt 0:00:07]} cxd4 {[%emt 0:00:06]} 4. Nxd4 {[%emt 0:00:01]} a6 {[%emt 0:00:11]} 5. Nc3 {[%emt 0:04:19]} b5 {[%emt 0:01:14]} 6. Bd3 {[%emt 0:02:17]} Bb7 {[%emt 0:00:20]} 7. O-O {[%emt 0:00:28]} Nc6 {[%emt 0:00:06]} 8. Nxc6 {[%emt 0:01:33]} Bxc6 {[%emt 0:00:03]} 9. Re1 {[%emt 0:03:18] B43: Sicilian: Kan Variation: 5 Nc3.} Bd6 {[%emt 0:01:17]} 10. Qg4 $146 {[%emt 0:08:02]} (10. e5 Bc7 11. a4 b4 12. Qg4 Ne7 13. Qxb4 Ng6 14. Qg4 Qb8 15. f4 O-O 16. Ne4 f5 17. exf6 gxf6 {½-½ Firouzja,A (2767)-Carlsen,M (2832) Julius Baer GenCup D1 W rapid 2024 (4.1)}) 10... Nf6 {[%emt 0:00:49] The position is equal.} 11. Qe2 {[%emt 0:04:38] and e5 would now be decisive} (11. Qh4 $5 Qc7 12. a3 $11) 11... Be5 {[%emt 0:13:20] [#]} 12. Nd5 $1 {[%emt 0:08:58]} O-O {[%emt 0:13:38]} 13. Nxf6+ {[%emt 0:00:11]} Qxf6 {[%emt 0:00:17]} 14. c3 {[%emt 0:00:06]} Qh4 {[%emt 0:06:10]} 15. h3 {[%emt 0:05:31]} g6 {[%emt 0:11:06]} 16. Qe3 {[%emt 0:09:40]} Qe7 {[%emt 0:03:22]} (16... Rfb8 {feels hotter.} 17. a3 a5 18. Qc5 Qf6) 17. Qe2 {[%emt 0:04:30]} b4 {[%emt 0:03:28]} 18. c4 {[%emt 0:03:30]} a5 {[%emt 0:02:56]} 19. Be3 {[%emt 0:05:10]} Qf6 {[%emt 0:05:47]} 20. Rab1 {[%emt 0:01:37]} Rfd8 {[%emt 0:02:29]} 21. Qd2 {[%emt 0:04:22]} Bd4 {[%emt 0:02:14]} 22. Bf4 {[%emt 0:02:13]} d6 {[%emt 0:06:01]} 23. Re2 {[%emt 0:00:51]} Qg7 {[%emt 0:00:16]} 24. Bh6 {[%emt 0:00:14]} Qe5 {[%emt 0:00:07]} 25. Bf4 {[%emt 0:00:08]} Qg7 {[%emt 0:00:01]} 26. Bh6 {[%emt 0:00:08]} Qe5 {[%emt 0:00:05]} 27. Bf4 {[%emt 0:31:40]} Qg7 {[%emt 0:26:46]} 28. Bh6 {[%emt 0:00:00]} Qe5 {[%emt 0:00:00]} 29. Bf4 {[%emt 0:00:00]} Qg7 {[%emt 0:00:00]} 30. Bh6 {[%emt 0:00:00]} Qe5 {[%emt 0:01:30] Weighted Error Value: White=0.05 (flawless) /Black=0.05 (flawless)   OK:         	White=13    	Black=6} 1/2-1/2

[Event "AUT Bundesliga 2024-25"]
[Site "Austria"]
[Date "2025.04.02"]
[Round "6.4"]
[White "Stalmach, Richard"]
[Black "Schnider, Gert"]
[Result "1-0"]
[Annotator "RC"]
[ECO "E04"]
[WhiteElo "2427"]
[BlackElo "2368"]
[PlyCount "57"]
[EventDate "2024.08.28"]
[EventType "team-tourn"]
[EventCountry "AUT"]
[SourceTitle "playchess.com"]
[Source "ChessBase"]
[SourceQuality "1"]
[TimeControl "40/5400+30:1800+30"]

1. d4 {[%emt 0:00:03]} Nf6 {[%emt 0:00:06]} 2. c4 {[%emt 0:00:05]} e6 {[%emt 0:00:03]} 3. g3 {[%emt 0:00:07]} d5 {[%emt 0:00:05]} 4. Bg2 {[%emt 0:00:05]} dxc4 {[%emt 0:00:06]} 5. Nf3 {[%emt 0:00:04]} Nc6 {[%emt 0:00:04]} 6. Qa4 {[%emt 0:00:10]} Bb4+ {[%emt 0:00:05]} 7. Bd2 {[%emt 0:00:04]} Nd5 {[%emt 0:00:04]} 8. Bxb4 {[%emt 0:00:04]} Ndxb4 {[%emt 0:00:04]} 9. a3 {[%emt 0:00:13]} b5 {[%emt 0:01:11]} 10. Qxb5 {[%emt 0:00:14]} Nc2+ {[%emt 0:00:03]} 11. Kd2 {[%emt 0:00:18]} Bd7 {[%emt 0:00:34]} 12. Kxc2 {[%emt 0:00:06]} Nxd4+ {[%emt 0:00:34]} 13. Nxd4 {[%emt 0:00:05]} Bxb5 {[%emt 0:00:10]} 14. Nxb5 {[%emt 0:00:02]} Rb8 {[%emt 0:09:30]} 15. N1c3 {[%emt 0:00:22]} O-O {[%emt 0:03:23]} 16. Rhd1 {[%emt 0:00:35]} Qg5 {[%emt 0:16:20]} 17. f4 {[%emt 0:18:50]} Qh5 {[%emt 0:09:19]} 18. Bf3 {[%emt 0:01:04]} Qf5+ {[%emt 0:04:24]} 19. Be4 {[%emt 0:02:32]} Qc5 {[%emt 0:01:04]} 20. Nd4 {[%emt 0:03:28]} Qb6 {[%emt 0:05:39]} 21. Rab1 {[%emt 0:00:57]} Rbd8 {[%emt 0:07:24]} 22. Nc6 {[%emt 0:03:07]} Rd6 {[%emt 0:02:39]} 23. Ne5 {[%emt 0:05:02]} Qb3+ {[%emt 0:00:09]} 24. Kc1 {[%emt 0:00:02]} Rxd1+ {[%emt 0:02:11]} 25. Nxd1 {[%emt 0:00:48]} Rd8 {[%emt 0:03:14]} 26. Nc3 {[%emt 0:04:01]} f6 {[%emt 0:02:45]} 27. Nc6 {[%emt 0:00:53]} Rd7 {[%emt 0:00:42]} 28. Nb4 {[%emt 0:00:23]} c5 {[%emt 0:05:56]} 29. Bc2 {[%emt 0:00:06]} 1-0

[Event "AUT Bundesliga 2024-25"]
[Site "Austria"]
[Date "2025.04.02"]
[Round "6.5"]
[White "Fahrner, Kurt"]
[Black "Haba, Petr"]
[Result "1/2-1/2"]
[Annotator "RC"]
[ECO "C47"]
[WhiteElo "2266"]
[BlackElo "2413"]
[PlyCount "62"]
[EventDate "2024.08.28"]
[EventType "team-tourn"]
[EventCountry "AUT"]
[SourceTitle "playchess.com"]
[Source "ChessBase"]
[SourceQuality "1"]
[TimeControl "40/5400+30:1800+30"]

1. e4 {[%emt 0:00:02]} e5 {[%emt 0:00:18]} 2. Nf3 {[%emt 0:00:14]} Nc6 {[%emt 0:00:32]} 3. Nc3 {[%emt 0:00:05]} Nf6 {[%emt 0:00:40]} 4. g3 {[%emt 0:00:17]} d5 {[%emt 0:02:41]} 5. exd5 {[%emt 0:00:06]} Nxd5 {[%emt 0:00:05]} 6. Bg2 {[%emt 0:00:10]} Nxc3 {[%emt 0:00:06]} 7. bxc3 {[%emt 0:00:04]} Bc5 {[%emt 0:00:17]} 8. O-O {[%emt 0:00:08]} O-O {[%emt 0:00:02]} 9. Re1 {[%emt 0:00:59]} Re8 {[%emt 0:11:05]} 10. d4 {[%emt 0:07:23]} exd4 {[%emt 0:06:26]} 11. Rxe8+ {[%emt 0:00:19]} Qxe8 {[%emt 0:00:01]} 12. cxd4 {[%emt 0:00:13]} Bf8 {[%emt 0:08:22]} 13. Bf4 {[%emt 0:15:00]} Bd6 {[%emt 0:06:22]} 14. Qd2 {[%emt 0:00:56]} Bf5 {[%emt 0:11:11]} 15. Re1 {[%emt 0:24:52]} Qd7 {[%emt 0:01:39]} 16. Ne5 {[%emt 0:12:52]} Bxe5 {[%emt 0:01:39]} 17. Bxe5 {[%emt 0:03:00]} Rd8 {[%emt 0:11:09]} 18. c3 {[%emt 0:16:11]} Nxe5 {[%emt 0:08:13]} 19. Rxe5 {[%emt 0:00:06]} c6 {[%emt 0:00:04]} 20. c4 {[%emt 0:07:41]} f6 {[%emt 0:09:52]} 21. Re3 {[%emt 0:06:16]} Be6 {[%emt 0:02:11]} 22. d5 {[%emt 0:00:30]} cxd5 {[%emt 0:00:22]} 23. cxd5 {[%emt 0:01:37]} Bf7 {[%emt 0:00:17]} 24. h4 {[%emt 0:01:36]} b6 {[%emt 0:02:18]} 25. Kh2 {[%emt 0:01:07]} Qd6 {[%emt 0:00:21]} 26. Qe1 {[%emt 0:01:03]} Kf8 {[%emt 0:00:29]} 27. Rd3 {[%emt 0:00:30]} Rc8 {[%emt 0:03:53]} 28. Rc3 {[%emt 0:00:35]} Rxc3 {[%emt 0:01:45]} 29. Qxc3 {[%emt 0:00:01]} Be8 {[%emt 0:00:09]} 30. Qc2 {[%emt 0:00:31]} g6 {[%emt 0:01:22]} 31. Qc8 {[%emt 0:00:42]} Ke7 {[%emt 0:05:15]} 1/2-1/2

[Event "AUT Bundesliga 2024-25"]
[Site "Austria"]
[Date "2025.04.02"]
[Round "6.6"]
[White "Bures, Jaroslav"]
[Black "Krebs, Johann"]
[Result "1-0"]
[Annotator "RC"]
[ECO "B32"]
[WhiteElo "2396"]
[BlackElo "2231"]
[PlyCount "51"]
[EventDate "2024.08.28"]
[EventType "team-tourn"]
[EventCountry "AUT"]
[SourceTitle "playchess.com"]
[Source "ChessBase"]
[SourceQuality "1"]
[TimeControl "40/5400+30:1800+30"]

1. e4 {[%emt 0:00:06]} c5 {[%emt 0:00:16]} 2. Nf3 {[%emt 0:00:05]} Nc6 {[%emt 0:00:05]} 3. d4 {[%emt 0:00:04]} cxd4 {[%emt 0:00:11]} 4. Nxd4 {[%emt 0:00:06]} e5 {[%emt 0:00:08]} 5. Nb5 {[%emt 0:00:07]} d6 {[%emt 0:00:04]} 6. c4 {[%emt 0:00:10]} Be6 {[%emt 0:01:02]} 7. Be3 {[%emt 0:01:48]} Nf6 {[%emt 0:02:56]} 8. f3 {[%emt 0:02:07]} a6 {[%emt 0:06:39]} 9. N5c3 {[%emt 0:00:04]} g6 {[%emt 0:00:10]} 10. Nd5 {[%emt 0:00:48]} Nd7 {[%emt 0:06:20]} 11. Qd2 {[%emt 0:04:49]} Bg7 {[%emt 0:03:03]} 12. Nbc3 {[%emt 0:00:12]} O-O {[%emt 0:02:26]} 13. O-O-O {[%emt 0:16:16]} Rc8 {[%emt 0:17:08]} 14. h4 {[%emt 0:04:08]} h5 {[%emt 0:08:12]} 15. g4 {[%emt 0:08:01]} Nd4 {[%emt 0:05:37]} 16. gxh5 {[%emt 0:00:32]} gxh5 {[%emt 0:11:29]} 17. Qg2 {[%emt 0:07:25]} Kh7 {[%emt 0:05:09]} 18. Qg5 {[%emt 0:15:52]} Qxg5 {[%emt 0:03:05]} 19. hxg5 {[%emt 0:00:03]} Rfe8 {[%emt 0:00:58]} 20. Rxh5+ {[%emt 0:06:24]} Kg6 {[%emt 0:00:41]} 21. Rh1 {[%emt 0:01:39]} f5 {[%emt 0:07:44]} 22. Bxd4 {[%emt 0:11:13]} exd4 {[%emt 0:00:19]} 23. Nf4+ {[%emt 0:00:15]} Kxg5 {[%emt 0:03:12]} 24. Nxe6+ {[%emt 0:01:30]} Rxe6 {[%emt 0:00:28]} 25. Nd5 {[%emt 0:00:03]} Ree8 {[%emt 0:07:02]} 26. Bh3 {[%emt 0:02:59]} 1-0

[Event "AUT Bundesliga 2024-25"]
[Site "Austria"]
[Date "2025.04.02"]
[Round "6.7"]
[White "Ragger, Markus"]
[Black "Karthik Venkataraman"]
[Result "1/2-1/2"]
[Annotator "TA"]
[ECO "B52"]
[WhiteElo "2585"]
[BlackElo "2565"]
[PlyCount "55"]
[EventDate "2024.08.28"]
[EventType "team-tourn"]
[EventCountry "AUT"]
[SourceTitle "playchess.com"]
[Source "ChessBase"]
[SourceQuality "1"]
[TimeControl "40/5400+30:1800+30"]

{[%evp 9,55,4,16,9,24,15,16,13,23,20,38,10,34,40,43,34,37,36,34,0,0,6,33,18,18,30,70,64,58,69,89,75,79,69,104,85,108,93,91,79,98,0,93,0,91,55,46,0]} 1. e4 {[%emt 0:00:02]} c5 {[%emt 0:00:22]} 2. Nf3 {[%emt 0:00:03]} d6 {[%emt 0:00:07]} 3. Bb5+ {[%emt 0:00:05]} Bd7 {[%emt 0:00:17]} 4. Bxd7+ {[%emt 0:00:07]} Nxd7 {[%emt 0:01:43]} 5. c4 {[%emt 0:00:22]} e6 {[%emt 0:00:53]} 6. Nc3 {[%emt 0:01:01] B52: Sicilian: Moscow Variation with 3...Bd7.} Be7 {[%emt 0:00:42]} 7. O-O {[%emt 0:02:10]} a6 {[%emt 0:00:35]} 8. d4 {[%emt 0:03:51] The position is equal.} cxd4 {[%emt 0:00:24]} 9. Nxd4 {[%emt 0:00:30]} Rc8 {[%emt 0:00:52]} 10. b3 {[%emt 0:05:27]} Ngf6 {[%emt 0:14:11][%cal Ob7b5]} (10... b5 $5) 11. Bb2 {[%emt 0:02:54]} Qa5 {[%emt 0:00:13]} 12. Qe1 $146 {[%emt 0:03:34]} (12. Rc1 O-O 13. h3 Rfe8 14. Re1 Qh5 15. Nf3 Qa5 16. Qe2 Ne5 17. Nxe5 dxe5 18. Red1 {0-1 Arjun,K (2509)-Albornoz Cabrera,C (2585) Monsaraz Rapid op 2023 (5)}) 12... Qh5 {[%emt 0:03:45]} 13. f3 {[%emt 0:00:37]} O-O {[%emt 0:00:26]} 14. g4 {[%emt 0:16:44]} Qc5 {[%emt 0:01:19]} 15. Qf2 {[%emt 0:02:32]} g6 {[%emt 0:12:05]} 16. Rad1 {[%emt 0:06:04]} Rfe8 {[%emt 0:01:20]} 17. Kh1 {[%emt 0:03:45]} e5 {[%emt 0:13:47]} 18. Nc2 {[%emt 0:03:50]} Qxf2 {[%emt 0:00:16]} 19. Rxf2 {[%emt 0:00:02]} Nc5 {[%emt 0:00:06]} 20. Ba3 {[%emt 0:06:35]} Nfd7 {[%emt 0:05:17]} 21. Ne3 {[%emt 0:08:12]} Bh4 {[%emt 0:08:14]} 22. Rg2 {[%emt 0:01:12]} Be7 {[%emt 0:02:21]} 23. Ncd5 {[%emt 0:07:14]} Bd8 {[%emt 0:03:03]} 24. Nb4 {[%emt 0:04:17] White is much more active.} Be7 {[%emt 0:01:22]} 25. Nbd5 {[%emt 0:02:02] Nxe7+ would now be deadly.} Bd8 {[%emt 0:00:11]} 26. Nb4 {[%emt 0:00:04]} Be7 $1 {[%emt 0:00:05]} 27. Nd3 {[%emt 0:00:17]} Ne6 {[%emt 0:01:57]} 28. Nb4 {[%emt 0:08:00] Weighted Error Value: White=0.16 (very precise) /Black=0.08 (flawless)   Mistake:       	White=1     	---        Inaccurate:     	White=2     	Black=3      OK:         	White=7     	Black=6      Best:        	---       	Black=1      Strong:       	---       	Black=1} (28. Rb2 $14) 1/2-1/2

[Event "AUT Bundesliga 2024-25"]
[Site "Austria"]
[Date "2025.04.02"]
[Round "6.8"]
[White "Pajeken, Jakob Leon"]
[Black "Costa, Leonardo"]
[Result "0-1"]
[Annotator "RC"]
[ECO "D36"]
[WhiteElo "2435"]
[BlackElo "2510"]
[PlyCount "144"]
[EventDate "2024.08.28"]
[EventType "team-tourn"]
[EventCountry "AUT"]
[SourceTitle "playchess.com"]
[Source "ChessBase"]
[SourceQuality "1"]
[TimeControl "40/5400+30:1800+30"]

1. d4 {[%emt 0:00:08]} Nf6 {[%emt 0:00:06]} 2. Nf3 {[%emt 0:00:04]} d5 {[%emt 0:00:04]} 3. c4 {[%emt 0:00:05]} e6 {[%emt 0:00:03]} 4. Nc3 {[%emt 0:00:03]} Nbd7 {[%emt 0:00:04]} 5. cxd5 {[%emt 0:01:06]} exd5 {[%emt 0:00:06]} 6. Bg5 {[%emt 0:00:05]} h6 {[%emt 0:00:19]} 7. Bh4 {[%emt 0:00:17]} Be7 {[%emt 0:00:28]} 8. e3 {[%emt 0:01:04]} O-O {[%emt 0:00:06]} 9. Bd3 {[%emt 0:00:28]} c6 {[%emt 0:00:04]} 10. Qc2 {[%emt 0:01:40]} Re8 {[%emt 0:00:04]} 11. O-O {[%emt 0:00:18]} Ne4 {[%emt 0:01:11]} 12. Bxe4 {[%emt 0:00:22]} Bxh4 {[%emt 0:00:06]} 13. Bh7+ {[%emt 0:00:21]} Kh8 {[%emt 0:00:04]} 14. Nxh4 {[%emt 0:00:34]} Qxh4 {[%emt 0:00:05]} 15. Bd3 {[%emt 0:00:39]} Qe7 {[%emt 0:04:36]} 16. Rfe1 {[%emt 0:03:01]} Nf6 {[%emt 0:01:09]} 17. f3 {[%emt 0:07:17]} Bd7 {[%emt 0:19:32]} 18. Qf2 {[%emt 0:08:49]} Rad8 {[%emt 0:05:01]} 19. Rad1 {[%emt 0:03:06]} c5 {[%emt 0:04:49]} 20. dxc5 {[%emt 0:03:17]} Qxc5 {[%emt 0:00:10]} 21. Bc2 {[%emt 0:00:56]} Bc6 {[%emt 0:08:03]} 22. Bb3 {[%emt 0:03:55]} Kg8 {[%emt 0:00:05]} 23. Rd4 {[%emt 0:04:44]} Re5 {[%emt 0:05:30]} 24. Red1 {[%emt 0:09:37]} Rde8 {[%emt 0:01:04]} 25. R1d3 {[%emt 0:00:41]} Qb6 {[%emt 0:23:13]} 26. Qd2 {[%emt 0:08:25]} a6 {[%emt 0:07:34]} 27. Kf2 {[%emt 0:13:48]} Ne4+ {[%emt 0:01:20]} 28. fxe4 {[%emt 0:00:50]} dxe4 {[%emt 0:00:03]} 29. Na4 {[%emt 0:01:44]} Bxa4 {[%emt 0:01:09]} 30. Bxa4 {[%emt 0:00:56]} exd3 {[%emt 0:03:33]} 31. Bxe8 {[%emt 0:00:13]} Rxe8 {[%emt 0:00:03]} 32. Rxd3 {[%emt 0:00:13]} Re6 {[%emt 0:05:49]} 33. Rd4 {[%emt 0:02:25]} Rg6 {[%emt 0:01:03]} 34. Kg1 {[%emt 0:01:32]} Qe6 {[%emt 0:03:54]} 35. b3 {[%emt 0:00:26]} Qe5 {[%emt 0:00:05]} 36. Qd3 {[%emt 0:03:33]} Qg5 {[%emt 0:00:57]} 37. g3 {[%emt 0:00:34]} Qe5 {[%emt 0:03:30]} 38. Qe4 {[%emt 0:01:53]} Qc7 {[%emt 0:01:09]} 39. Rc4 {[%emt 0:01:49]} Qd7 {[%emt 0:01:37]} 40. Rd4 {[%emt 0:00:47]} Qc7 {[%emt 0:00:03]} 41. Rc4 {[%emt 0:31:59]} Qa5 {[%emt 0:32:09]} 42. Rc2 {[%emt 0:03:57]} Qd8 {[%emt 0:00:00]} 43. Kg2 {[%emt 0:00:00]} Qd7 {[%emt 0:00:00]} 44. Qe5 {[%emt 0:00:00]} Re6 {[%emt 0:00:00]} 45. Qf5 {[%emt 0:00:00]} b5 {[%emt 0:00:00]} 46. e4 {[%emt 0:00:00]} Qb7 {[%emt 0:00:00]} 47. Qd5 {[%emt 0:00:00]} Qe7 {[%emt 0:00:00]} 48. Re2 {[%emt 0:00:00]} g6 {[%emt 0:00:00]} 49. Rf2 {[%emt 0:00:00]} h5 {[%emt 0:00:00]} 50. Rf4 {[%emt 0:00:00]} Kg7 {[%emt 0:00:00]} 51. e5 {[%emt 0:00:00]} Qc7 {[%emt 0:00:00]} 52. a4 {[%emt 0:00:00]} Qxe5 {[%emt 0:00:00]} 53. Qxe5+ {[%emt 0:00:15]} Rxe5 {[%emt 0:00:00]} 54. axb5 {[%emt 0:00:15]} axb5 {[%emt 0:00:00]} 55. Rd4 {[%emt 0:00:37]} Re2+ {[%emt 0:00:00]} 56. Kf3 {[%emt 0:01:36]} Rxh2 {[%emt 0:00:00]} 57. Rb4 {[%emt 0:00:32]} g5 {[%emt 0:00:00]} 58. Rxb5 {[%emt 0:00:27]} Kg6 {[%emt 0:00:00]} 59. Rb8 {[%emt 0:00:55]} g4+ {[%emt 0:00:00]} 60. Ke4 {[%emt 0:02:37]} Rg2 {[%emt 0:00:00]} 61. Rg8+ {[%emt 0:00:40]} Kf6 {[%emt 0:00:00]} 62. Rh8 {[%emt 0:00:33]} Rxg3 {[%emt 0:00:17]} 63. Rxh5 {[%emt 0:00:19]} Rxb3 {[%emt 0:00:03]} 64. Kf4 {[%emt 0:00:51]} Rb4+ {[%emt 0:00:04]} 65. Kg3 {[%emt 0:00:05]} Kg6 {[%emt 0:00:03]} 66. Ra5 {[%emt 0:00:17]} f5 {[%emt 0:00:11]} 67. Kh4 {[%emt 0:00:09]} Kf6 {[%emt 0:02:21]} 68. Ra8 {[%emt 0:00:58]} Rb3 {[%emt 0:00:37]} 69. Rf8+ {[%emt 0:00:34]} Ke5 {[%emt 0:00:03]} 70. Kg5 {[%emt 0:00:42]} Rf3 {[%emt 0:00:03]} 71. Re8+ {[%emt 0:00:05]} Kd4 {[%emt 0:00:04]} 72. Kh4 {[%emt 0:00:24]} Re3 {[%emt 0:00:49]} 0-1